bitfinex/quotes_ETHUSD_20250708
["timestamp","ask_amount","ask_price","bid_price","bid_amount"]
[1751952651267,0.75430001,2550.8,2550.7,4.11649241]
[1751952651439,0.75430001,2550.8,2550.7,10.03449241]
[1751952652532,0.75430001,2550.8,2550.7,4.11649241]
[1751952652760,0.75430001,2550.8,2550.7,9.83849241]
[1751952652967,1.42036534,2550.8,2550.7,9.83849241]
[1751952655365,1.42036534,2550.8,2550.7,3.92049241]
[1751952655570,0.75430001,2550.8,2550.7,9.83849241]
[1751952655771,0.75430001,2550.8,2550.7,10.03449241]
[1751952655943,1e-08,2550.8,2550.7,10.03449241]
[1751952656347,0.76180001,2550.8,2550.7,10.03449241]
[1751952656649,0.76180001,2550.8,2550.7,4.11649241]
[1751952656967,1.12890196,2550.8,2550.7,10.03449241]
[1751952658147,0.76180001,2550.8,2550.7,10.03449241]
[1751952667393,1.12898414,2550.8,2550.7,10.03449241]
[1751952669699,1.12916856,2550.8,2550.7,10.03449241]
[1751952672090,0.36736856,2550.8,2550.7,10.03449241]
[1751952672293,0.36736856,2550.8,2550.7,11.98010328]
[1751952672495,1e-08,2550.8,2550.7,11.98010328]
[1751952675894,1e-08,2550.8,2550.7,10.58449241]
[1751952676494,0.36762279,2550.8,2550.7,4.66649241]
[1751952676675,0.36762279,2550.8,2550.7,10.58449241]
[1751952676878,0.36762279,2550.8,2550.7,4.11649241]
[1751952677065,0.36762279,2550.8,2550.7,9.83849241]
[1751952677267,1.0704004,2550.8,2550.7,9.83849241]
[1751952677462,1.0704004,2550.8,2550.7,5.918]
[1751952681607,1.07042236,2550.8,2550.7,5.918]
[1751952683904,7.31201358,2550.8,2550.6,0.197]
[1751952684111,2.94398909,2550.7,2550.6,5.92]
[1751952684280,3.91890109,2550.7,2550.6,5.92]
[1751952684621,3.91883877,2550.7,2550.6,0.001]
[1751952685506,2.50713996,2550.7,2550.6,0.001]
[1751952686283,3.91796379,2550.7,2550.6,0.001]
[1751952690230,13.91796379,2550.7,2550.6,0.001]
[1751952690388,17.92147819,2550.7,2550.6,0.001]
[1751952691215,23.84047819,2550.7,2550.6,0.001]
[1751952691415,17.92147819,2550.7,2550.6,0.001]
[1751952691922,13.92147819,2550.7,2550.6,0.001]
[1751952692391,13.92116038,2550.7,2550.6,0.001]
[1751952694105,13.91859843,2550.7,2550.6,0.001]
[1751952694914,3.91859843,2550.7,2550.6,0.001]
[1751952695096,2.11428643,2550.7,2550.6,0.001]
[1751952695292,0.70602455,2550.7,2550.6,0.001]
[1751952695616,0.3667964,2550.7,2550.6,0.001]
[1751952701124,6.27314971,2550.7,2550.6,0.001]
[1751952701332,8.02053776,2550.7,2550.6,0.001]
[1751952701501,9.51736154,2550.7,2550.6,0.001]
[1751952702019,10.31476154,2550.7,2550.6,0.001]
[1751952702535,20.31476154,2550.7,2550.6,0.001]
[1751952707742,26.23476154,2550.7,2550.6,0.001]
[1751952708434,27.99508889,2550.7,2550.6,0.001]
[1751952709232,31.99508889,2550.7,2550.6,0.001]
[1751952710540,30.23476154,2550.7,2550.6,0.001]
[1751952711109,30.23714725,2550.7,2550.6,0.001]
[1751952711317,34.15763966,2550.7,2550.6,0.001]
[1751952711647,30.23714725,2550.7,2550.6,0.001]
[1751952712021,32.5885203,2550.7,2550.6,0.001]
[1751952716647,26.6685203,2550.7,2550.6,0.001]
[1751952716850,32.59156729,2550.7,2550.6,0.001]
[1751952718554,28.59156729,2550.7,2550.6,0.001]
[1751952719578,22.67156729,2550.7,2550.6,0.001]
[1751952719875,20.33384093,2550.7,2550.6,0.001]
[1751952720072,19.53644093,2550.7,2550.6,0.001]
[1751952720582,13.61644093,2550.7,2550.6,0.001]
[1751952720751,21.29962446,2550.7,2550.6,0.001]
[1751952720953,15.37962446,2550.7,2550.6,0.001]
[1751952721151,18.03961715,2550.7,2550.6,0.001]
[1751952722782,2.11961715,2550.7,2550.6,0.001]
[1751952722982,2.11961715,2550.7,2550.6,4.69484612]
[1751952723284,0.36738495,2550.7,2550.6,4.69484612]
[1751952724676,1e-08,2550.8,2550.6,4.69484612]
[1751952724677,1e-08,2550.8,2550.7,3.92049241]
[1751952724978,0.36710151,2550.8,2550.7,3.92049241]
[1751952727585,0.36696411,2550.8,2550.7,3.92049241]
[1751952727785,0.36696411,2550.8,2550.7,4.80172626]
[1751952727965,0.36696411,2550.8,2550.7,0.88123385]
[1751952732499,1e-08,2550.8,2550.7,0.88123385]
[1751952732706,0.36696411,2550.8,2550.7,0.88123385]
[1751952732915,1e-08,2550.8,2550.7,0.88123385]
[1751952733113,0.36696411,2550.8,2550.6,4.69484612]
[1751952733312,0.3669641,2550.7,2550.6,4.69484612]
[1751952733517,1e-08,2550.8,2550.6,4.69484612]
[1751952733683,0.36680286,2550.8,2550.6,4.69484612]
[1751952734012,0.36680285,2550.7,2550.6,4.69484612]
[1751952734610,1e-08,2550.8,2550.6,0.7742]
[1751952734810,0.36680286,2550.8,2550.6,0.7742]
[1751952734980,0.36680285,2550.7,2550.6,0.7742]
[1751952735184,1e-08,2550.8,2550.6,0.7742]
[1751952735385,0.36680286,2550.8,2550.6,0.7742]
[1751952735584,0.36680285,2550.7,2550.6,0.7742]
[1751952735808,1e-08,2550.8,2550.6,0.7742]
[1751952736012,0.36680286,2550.8,2550.6,0.7742]
[1751952736179,0.36680285,2550.7,2550.6,0.7742]
[1751952736380,0.36674449,2550.7,2550.6,0.7742]
[1751952736612,1e-08,2550.8,2550.6,0.7742]
[1751952736817,0.3667445,2550.8,2550.6,0.7742]
[1751952737016,0.36674449,2550.7,2550.6,0.7742]
[1751952737590,1e-08,2550.8,2550.6,0.7742]
[1751952737799,0.3667445,2550.8,2550.6,0.7742]
[1751952738117,0.36674449,2550.7,2550.6,0.7742]
[1751952738314,0.36674449,2550.7,2550.6,0.001]
[1751952738488,1e-08,2550.8,2550.6,0.001]
[1751952738690,0.3667445,2550.8,2550.6,0.001]
[1751952738884,0.36674449,2550.7,2550.6,0.001]
[1751952739126,1e-08,2550.8,2550.6,0.001]
[1751952739419,0.3667445,2550.8,2550.6,0.001]
[1751952739619,0.36674449,2550.7,2550.6,0.001]
[1751952740781,1e-08,2550.8,2550.6,0.001]
[1751952740987,0.3667445,2550.8,2550.6,0.001]
[1751952741235,0.36674449,2550.7,2550.6,0.001]
[1751952741436,1e-08,2550.8,2550.6,0.001]
[1751952741727,0.3667445,2550.8,2550.6,0.001]
[1751952741893,0.36674449,2550.7,2550.6,0.001]
[1751952742093,1e-08,2550.8,2550.6,0.001]
[1751952742290,0.36674449,2550.7,2550.6,0.001]
[1751952748450,1.4733703,2550.7,2550.6,0.001]
[1751952748955,17.37972361,2550.7,2550.6,0.001]
[1751952749162,18.02156038,2550.7,2550.6,0.001]
[1751952749317,19.78474391,2550.7,2550.6,0.001]
[1751952750527,20.57594391,2550.7,2550.6,0.001]
[1751952750757,20.57690941,2550.7,2550.6,0.001]
[1751952751840,20.57910597,2550.7,2550.6,0.001]
[1751952754929,25.08678091,2550.7,2550.6,0.001]
[1751952755946,29.08678091,2550.7,2550.6,0.001]
[1751952756736,28.74831424,2550.7,2550.6,0.001]
[1751952756941,29.11553472,2550.7,2550.6,0.001]
[1751952757144,26.76416167,2550.7,2550.6,0.001]
[1751952758246,29.11553472,2550.7,2550.6,0.001]
[1751952758652,26.76416167,2550.7,2550.6,0.001]
[1751952759356,4.89304612,2550.6,2550.5,0.001]
[1751952759559,21.229331,2550.6,2550.5,0.001]
[1751952760279,18.88016207,2550.6,2550.5,0.001]
[1751952760947,21.229331,2550.6,2550.5,0.001]
[1751952762534,21.30868488,2550.6,2550.5,0.001]
[1751952762736,21.30826615,2550.6,2550.5,0.001]
[1751952764850,25.22891227,2550.6,2550.5,0.001]
[1751952765371,22.87974334,2550.6,2550.5,0.001]
[1751952766281,18.95909722,2550.6,2550.5,0.001]
[1751952767072,22.87974334,2550.6,2550.5,0.001]
[1751952768572,22.87876425,2550.6,2550.5,0.001]
[1751952769069,18.95811813,2550.6,2550.5,0.001]
[1751952770396,21.30728706,2550.6,2550.5,0.001]
[1751952771257,20.9406042,2550.6,2550.5,0.001]
[1751952771457,21.30740744,2550.6,2550.5,0.001]
[1751952772480,27.21376075,2550.6,2550.5,0.001]
[1751952772662,24.86459182,2550.6,2550.5,0.001]
[1751952773065,24.08819182,2550.6,2550.5,0.001]
[1751952774779,29.943078,2550.6,2550.5,0.7809]
[1751952774986,12.26183851,2550.6,2550.5,0.7809]
[1751952775650,2.34083851,2550.6,2550.5,0.7809]
[1751952775850,8.26183851,2550.6,2550.5,0.7809]
[1751952776284,2.34083851,2550.6,2550.5,0.7809]
[1751952776462,2.34083851,2550.6,2550.5,4.70169984]
[1751952777178,2.34110338,2550.6,2550.5,4.70169984]
[1751952777381,2.34110338,2550.6,2550.5,0.7809]
[1751952781466,0.92975097,2550.6,2550.5,0.7809]
[1751952784761,0.56300792,2550.6,2550.5,0.7809]
[1751952785074,0.9300769,2550.6,2550.5,0.7809]
[1751952786204,0.9320769,2550.6,2550.5,0.7809]
[1751952786407,0.56506898,2550.6,2550.5,0.7809]
[1751952786583,0.93206674,2550.6,2550.5,0.7809]
[1751952787302,0.93206674,2550.6,2550.5,0.001]
[1751952793616,0.93202761,2550.6,2550.5,0.001]
[1751952796514,0.73602761,2550.6,2550.5,0.822]
[1751952802421,0.73652596,2550.6,2550.5,0.822]
[1751952803428,2.14618199,2550.6,2550.5,0.822]
[1751952803592,0.73652596,2550.6,2550.5,0.822]
[1751952803996,0.73718902,2550.6,2550.5,0.822]
[1751952805219,2.14684505,2550.6,2550.5,0.822]
[1751952805624,0.73718902,2550.6,2550.5,0.822]
[1751952805826,2.14684505,2550.6,2550.5,0.822]
[1751952806226,0.73718902,2550.6,2550.5,0.822]
[1751952806400,2.14684505,2550.6,2550.5,0.822]
[1751952807025,0.73718902,2550.6,2550.5,0.822]
[1751952807228,2.14684505,2550.6,2550.5,0.822]
[1751952807642,0.73718902,2550.6,2550.5,0.822]
[1751952807825,2.14684505,2550.6,2550.5,0.822]
[1751952808128,0.73745625,2550.6,2550.5,0.822]
[1751952808325,2.14711228,2550.6,2550.5,0.822]
[1751952808720,0.73745625,2550.6,2550.5,0.822]
[1751952808916,2.14711228,2550.6,2550.5,0.822]
[1751952809113,0.73745625,2550.6,2550.5,0.822]
[1751952809315,2.14711228,2550.6,2550.5,0.822]
[1751952809516,0.73745625,2550.6,2550.5,0.822]
[1751952809726,2.14711228,2550.6,2550.5,0.822]
[1751952810236,0.73745625,2550.6,2550.5,0.822]
[1751952810434,2.14711228,2550.6,2550.5,4.74279984]
[1751952810730,0.73745625,2550.6,2550.5,4.74279984]
[1751952810933,0.73766376,2550.6,2550.5,5.82497423]
[1751952811118,0.73766376,2550.6,2550.5,10.55226538]
[1751952811338,0.36983188,2550.6,2550.5,10.55226538]
[1751952812323,0.36983188,2550.6,2550.5,11.10226538]
[1751952812716,0.36983188,2550.6,2550.5,17.02126538]
[1751952812911,0.36983188,2550.6,2550.5,12.29397423]
[1751952814121,0.36946725,2550.6,2550.5,12.29397423]
[1751952814326,0.002,2550.6,2550.5,12.29397423]
[1751952815909,0.36931669,2550.6,2550.5,12.29397423]
[1751952816536,0.002,2550.6,2550.5,12.29397423]
[1751952846492,0.002,2550.6,2550.5,4.11779984]
[1751952846667,0.36976464,2550.6,2550.5,10.03479984]
[1751952848197,0.36976464,2550.6,2550.5,0.197]
[1751952848363,0.73755339,2550.6,2550.5,6.114]
[1751952849396,0.73755339,2550.6,2550.5,10.03479984]
[1751952851285,0.73755339,2550.6,2550.5,0.197]
[1751952851488,0.73755339,2550.6,2550.5,10.03479984]
[1751952851885,0.73755339,2550.6,2550.5,0.197]
[1751952852083,1.03007222,2550.6,2550.5,5.918]
[1751952852267,2.44200717,2550.6,2550.5,5.918]
[1751952852880,1.03007222,2550.6,2550.5,5.918]
[1751952853091,1.0299463,2550.6,2550.5,5.918]
[1751952857075,1.0299463,2550.6,2550.5,0.101]
[1751952857279,1.0299463,2550.6,2550.5,6.018]
[1751952857280,1.2259463,2550.6,2550.5,6.018]
[1751952857679,1.2259463,2550.6,2550.5,0.101]
[1751952858113,2.63634073,2550.6,2550.5,0.101]
[1751952858280,1.2259463,2550.6,2550.5,0.101]
[1751952871136,1.22492015,2550.6,2550.5,0.101]
[1751952872031,0.85771949,2550.6,2550.5,0.101]
[1751952872206,0.93243839,2550.6,2550.5,0.101]
[1751952872834,0.93243839,2550.6,2550.5,4.02179984]
[1751952873043,0.73643839,2550.6,2550.5,4.02179984]
[1751952873331,0.73643839,2550.6,2550.5,0.101]
[1751952873533,0.73643839,2550.6,2550.5,4.02179984]
[1751952876315,0.36923773,2550.6,2550.5,11.67892213]
[1751952876942,0.002,2550.6,2550.5,11.67892213]
[1751952877140,0.369514,2550.6,2550.5,12.22892213]
[1751952877442,0.002,2550.6,2550.5,12.22892213]
[1751952878848,0.002,2550.6,2550.5,7.50077842]
[1751952887667,0.002,2550.6,2550.5,6.213]
[1751952887862,0.36907233,2550.6,2550.5,10.13379984]
[1751952888362,0.36907233,2550.6,2550.5,0.297]
[1751952888557,0.73620052,2550.6,2550.5,6.017]
[1751952889660,0.73621646,2550.6,2550.5,6.017]
[1751952891182,1.05047123,2550.6,2550.5,0.101]
[1751952891542,1.87167123,2550.6,2550.5,6.017]
[1751952891876,1.55741646,2550.6,2550.5,6.017]
[1751952894658,1.55741646,2550.6,2550.5,0.101]
[1751952896979,0.73621646,2550.6,2550.5,0.101]
[1751952900351,0.73629746,2550.6,2550.5,0.101]
[1751952901082,0.73645026,2550.6,2550.5,0.101]
[1751952902574,0.73647027,2550.6,2550.5,0.101]
[1751952906291,0.73646656,2550.6,2550.5,0.101]
[1751952910971,0.73646656,2550.6,2550.5,4.02179984]
[1751952912293,0.73646656,2550.6,2550.5,0.101]
[1751952917990,0.73782166,2550.6,2550.5,0.101]
[1751952920368,2.14847347,2550.6,2550.5,0.101]
[1751952926896,0.73782166,2550.6,2550.5,0.101]
[1751952927202,0.73782166,2550.6,2550.5,4.02179984]
[1751952927613,0.73782166,2550.6,2550.5,0.101]
[1751952928513,0.73782166,2550.6,2550.5,4.02179984]
[1751952930216,0.73782166,2550.6,2550.5,0.101]
[1751952931308,0.36991083,2550.6,2550.5,0.101]
[1751952931523,0.73787431,2550.6,2550.5,0.101]
[1751952931712,0.73787431,2550.6,2550.5,4.02179984]
[1751952932182,0.73787431,2550.6,2550.5,0.101]
[1751952935212,0.97232692,2550.6,2550.5,0.101]
[1751952935597,2.38297873,2550.6,2550.5,0.101]
[1751952935997,0.97232692,2550.6,2550.5,0.101]
[1751952936200,2.38297873,2550.6,2550.5,0.101]
[1751952937012,0.97232692,2550.6,2550.5,0.101]
[1751952938619,0.97238399,2550.6,2550.5,0.101]
[1751952939720,2.3830358,2550.6,2550.5,0.101]
[1751952940117,0.97238399,2550.6,2550.5,0.101]
[1751952940324,2.3830358,2550.6,2550.5,0.101]
[1751952940520,0.97238399,2550.6,2550.5,0.101]
[1751952940906,2.3830358,2550.6,2550.5,0.101]
[1751952941289,0.97238399,2550.6,2550.5,0.101]
[1751952941641,2.3830358,2550.6,2550.5,0.101]
[1751952941928,4.93492481,2550.6,2550.5,0.101]
[1751952942091,2.3830358,2550.6,2550.5,0.101]
[1751952942286,4.93852481,2550.6,2550.5,0.101]
[1751952944461,3.1762358,2550.6,2550.5,0.101]
[1751952945932,14.93852481,2550.6,2550.5,0.101]
[1751952946149,10.8298,2550.5,2550.4,0.001]
[1751952946341,15.52567748,2550.5,2550.4,0.001]
[1751952946559,13.17238319,2550.5,2550.4,0.001]
[1751952946760,19.08838319,2550.5,2550.4,0.001]
[1751952946960,21.44167748,2550.5,2550.4,0.001]
[1751952947161,25.44167748,2550.5,2550.4,0.001]
[1751952947572,23.08838319,2550.5,2550.4,0.001]
[1751952948865,17.17238319,2550.5,2550.4,0.001]
[1751952949179,6.34258319,2550.5,2550.4,0.001]
[1751952949556,2.34258319,2550.5,2550.4,0.001]
[1751952954385,3.14618319,2550.5,2550.4,0.001]
[1751952954781,7.14618319,2550.5,2550.4,0.001]
[1751952957568,18.97918319,2550.5,2550.4,0.001]
[1751952957894,18.17558319,2550.5,2550.4,0.001]
[1751952961497,18.17758319,2550.5,2550.4,0.001]
[1751952966893,18.17690989,2550.5,2550.4,0.001]
[1751952969615,19.9395655,2550.5,2550.4,0.001]
[1751952969817,19.93974142,2550.5,2550.4,0.001]
[1751952972925,19.94000527,2550.5,2550.4,0.001]
[1751952973613,8.10700527,2550.5,2550.4,0.001]
[1751952973814,14.02300527,2550.5,2550.4,0.001]
[1751952977593,8.10700527,2550.5,2550.4,0.001]
[1751952977794,14.02300527,2550.5,2550.4,0.001]
[1751952978821,19.93577602,2550.5,2550.4,0.001]
[1751952979320,15.93577602,2550.5,2550.4,0.001]
[1751952981091,10.02300527,2550.5,2550.4,0.001]
[1751952983425,4.10700527,2550.5,2550.4,0.001]
[1751952983749,4.10700527,2550.5,2550.4,4.73385357]
[1751952983750,2.14834966,2550.5,2550.4,4.73385357]
[1751952983910,0.002,2550.5,2550.4,5.47985357]
[1751952987537,0.002,2550.5,2550.4,5.5190631]
[1751952987715,0.002,2550.5,2550.4,7.19817813]
[1751952987901,0.002,2550.5,2550.4,7.1589686]
[1751952996319,0.002,2550.5,2550.4,13.0739686]
[1751952998819,0.002,2550.5,2550.4,7.1589686]
[1751952999161,0.002,2550.5,2550.4,14.5069686]
[1751953003973,0.002,2550.5,2550.4,24.5069686]
[1751953004341,1e-08,2550.6,2550.5,15.25349984]
[1751953004543,1e-08,2550.6,2550.5,25.01516307]
[1751953011487,0.002,2551.4,2551.3,4.46957041]
[1751953011775,0.002,2551.4,2551.3,21.81657041]
[1751953011984,0.002,2551.4,2551.3,22.01177041]
[1751953012146,0.002,2551.4,2551.3,25.2934265]
[1751953012346,0.002,2551.7,2551.5,3.91926317]
[1751953012563,0.002,2551.7,2551.5,10.02846317]
[1751953015952,0.002,2551.7,2551.5,10.78366317]
[1751953016560,0.002,2551.7,2551.5,4.86966317]
[1751953016760,0.002,2551.7,2551.5,14.86969085]
[1751953017480,0.002,2551.7,2551.5,7.52369085]
[1751953017680,0.002,2551.7,2551.5,14.86969085]
[1751953019882,0.002,2551.7,2551.5,15.41969085]
[1751953020557,0.002,2551.7,2551.5,25.41969085]
[1751953023265,0.0426147,2552.1,2552.0,4.46849529]
[1751953023595,0.0426147,2552.1,2552.0,10.38049529]
[1751953023889,0.0426147,2552.1,2552.0,13.06583702]
[1751953024279,0.0426147,2552.1,2552.0,23.88893702]
[1751953026794,0.0426147,2552.1,2552.0,25.32293702]
[1751953027891,0.0426147,2552.1,2552.0,17.97693702]
[1751953028095,0.0446147,2552.1,2552.0,25.32193702]
[1751953029094,0.0446147,2552.1,2552.0,17.97693702]
[1751953029468,0.0446147,2552.1,2552.0,25.32193702]
[1751953031395,0.0446147,2552.1,2552.0,25.32093702]
[1751953033303,0.0446147,2552.1,2552.0,17.97693702]
[1751953033606,0.0446147,2552.1,2552.0,25.32093702]
[1751953033772,0.0446147,2552.1,2552.0,17.97693702]
[1751953033974,0.0446147,2552.1,2552.0,25.32093702]
[1751953035004,0.0426147,2552.6,2552.5,4.46772771]
[1751953035208,0.0426147,2552.6,2552.5,11.49527539]
[1751953036096,0.8337147,2552.6,2552.5,10.94527539]
[1751953038710,0.8337147,2552.6,2552.5,0.1952]
[1751953038909,0.8337147,2552.6,2552.5,5.91]
[1751953039112,0.8337147,2552.6,2552.3,0.1952]
[1751953039285,0.8337147,2552.6,2552.4,5.912]
[1751953041105,0.8337147,2552.6,2552.5,5.912]
[1751953041310,1.19987036,2552.6,2552.5,5.912]
[1751953045614,0.7837,2552.5,2552.0,1.433]
[1751953045919,0.7837,2552.3,2552.1,6.1062]
[1751953046892,0.7837,2552.3,2552.1,0.1952]
[1751953047415,0.36674565,2552.2,2552.0,0.1952]
[1751953047620,0.36674565,2552.2,2552.1,5.912]
[1751953048124,0.7765,2552.1,2551.7,1.433]
[1751953048318,0.36674565,2552.0,2551.8,0.1952]
[1751953048509,0.36674565,2552.0,2551.9,5.912]
[1751953050022,0.36674565,2552.0,2551.8,0.1952]
[1751953050221,0.36674565,2552.0,2551.9,5.912]
[1751953051898,0.36671679,2552.0,2551.9,5.912]
[1751953054527,0.36654237,2552.0,2551.9,5.912]
[1751953057534,0.7765,2552.1,2551.9,5.912]
[1751953061340,0.7765,2552.1,2551.9,5.912]
[1751953062233,0.7765,2552.1,2551.8,0.1952]
[1751953062436,0.36643094,2552.0,2551.8,5.915]
[1751953062733,0.7873,2551.9,2551.8,5.915]
[1751953063431,7.06651582,2551.9,2551.4,0.001]
[1751953063611,0.36644507,2551.8,2551.5,6.1112]
[1751953065532,0.36644507,2551.8,2551.6,3.91908557]
[1751953065738,0.36644507,2551.8,2551.7,5.917]
[1751953066459,0.7873,2551.9,2551.7,5.917]
[1751953066746,0.7882,2551.7,2551.6,5.917]
[1751953066946,1.15465051,2551.7,2551.6,5.917]
[1751953068565,1.15465051,2551.7,2551.4,0.001]
[1751953068861,0.72626213,2551.6,2551.4,5.919]
[1751953069160,0.7882,2551.7,2551.4,5.919]
[1751953070119,0.36657781,2551.6,2551.4,5.919]
[1751953070320,0.36657781,2551.6,2551.4,5.918]
[1751953071445,0.36657781,2551.5,2551.4,5.918]
[1751953071644,0.36657781,2551.6,2551.4,5.918]
[1751953072149,0.776,2551.5,2551.4,0.001]
[1751953072461,1.14257781,2551.5,2551.4,0.001]
[1751953072625,11.14257781,2551.5,2551.4,0.001]
[1751953072829,12.91425889,2551.5,2551.4,0.001]
[1751953073357,12.91412457,2551.5,2551.4,0.001]
[1751953073653,14.21719455,2551.5,2551.4,0.001]
[1751953073820,18.21719455,2551.5,2551.4,0.001]
[1751953075164,18.21711345,2551.5,2551.4,0.001]
[1751953078750,22.13637662,2551.5,2551.4,0.001]
[1751953079041,28.05437662,2551.5,2551.4,0.001]
[1751953080875,28.05437662,2551.5,2550.4,0.197]
[1751953080876,0.7996,2551.1,2550.4,0.001]
[1751953081037,0.7996,2550.6,2550.4,0.001]
[1751953081236,0.73251714,2550.5,2550.4,0.001]
[1751953081647,0.36625857,2550.5,2550.4,0.001]
[1751953082058,1.6662215,2550.5,2550.4,0.001]
[1751953082260,2.03225865,2550.5,2550.4,0.001]
[1751953082538,7.57899225,2550.5,2550.4,0.001]
[1751953082739,8.71829587,2550.5,2550.4,0.001]
[1751953083076,30.04613833,2550.5,2550.4,0.001]
[1751953083243,28.64130706,2550.5,2550.4,0.001]
[1751953093161,6.03203631,2550.5,2550.4,0.001]
[1751953093376,4.36625857,2550.5,2550.4,0.001]
[1751953093574,4.73124608,2550.5,2550.4,0.001]
[1751953093774,21.44331683,2550.5,2550.4,0.001]
[1751953094180,25.36411667,2550.5,2550.4,0.001]
[1751953094356,26.76647507,2550.5,2550.4,0.001]
[1751953096074,29.96083403,2550.5,2550.4,0.001]
[1751953096991,28.20247507,2550.5,2550.4,0.001]
[1751953097487,28.20164509,2550.5,2550.4,0.001]
[1751953099798,29.96000405,2550.5,2550.4,0.001]
[1751953100501,29.96032118,2550.5,2550.4,0.001]
[1751953101960,30.54644084,2550.5,2550.4,0.001]
[1751953102380,13.92095357,2550.4,2550.3,0.001]
[1751953102585,26.8023452,2550.4,2550.3,0.001]
[1751953104256,29.14682382,2550.4,2550.3,0.001]
[1751953106564,23.21982382,2550.4,2550.3,0.001]
[1751953106768,31.137641,2550.4,2550.3,0.001]
[1751953106967,35.05859457,2550.4,2550.3,0.001]
[1751953107167,29.13259457,2550.4,2550.3,0.001]
[1751953107368,22.86716238,2550.4,2550.1,0.0436147]
[1751953107565,1.76024126,2550.2,2550.1,0.0436147]
[1751953107771,13.81933289,2550.2,2550.1,0.0436147]
[1751953108287,12.05909163,2550.2,2550.1,0.0436147]
[1751953108864,17.97186238,2550.2,2550.1,0.0436147]
[1751953109270,20.31885073,2550.2,2550.1,0.0436147]
[1751953111804,14.39285073,2550.2,2550.1,0.0436147]
[1751953112004,14.40507998,2550.2,2550.1,0.0436147]
[1751953112213,14.40712602,2550.2,2550.1,0.0436147]
[1751953112911,12.06013767,2550.2,2550.1,0.0436147]
[1751953115277,12.06195039,2550.2,2550.1,0.0436147]
[1751953116110,8.06195039,2550.2,2550.1,0.0436147]
[1751953118119,7.6946963,2550.2,2550.1,0.0436147]
[1751953118281,8.0621053,2550.2,2550.1,0.0436147]
[1751953119105,12.0621053,2550.2,2550.1,0.0436147]
[1751953120725,12.0708751,2550.2,2550.1,0.0436147]
[1751953121176,14.41786345,2550.2,2550.1,0.0436147]
[1751953122007,14.41586345,2550.2,2550.1,0.0436147]
[1751953123401,10.196,2550.1,2550.0,0.001]
[1751953123605,18.1070038,2550.1,2550.0,0.001]
[1751953124113,16.3418751,2550.1,2550.0,0.001]
[1751953126922,15.9744661,2550.1,2550.0,0.001]
[1751953127227,16.34248874,2550.1,2550.0,0.001]
[1751953129196,18.68947709,2550.1,2550.0,0.001]
[1751953130025,18.68948998,2550.1,2550.0,0.001]
[1751953130232,19.44678998,2550.1,2550.0,0.001]
[1751953132799,19.44748823,2550.1,2550.0,0.001]
[1751953135923,19.44751168,2550.1,2550.0,0.001]
[1751953138536,19.44951168,2550.1,2550.0,0.001]
[1751953142840,18.69221168,2550.1,2550.0,0.001]
[1751953144335,18.69224791,2550.1,2550.0,0.001]
[1751953147134,18.69452084,2550.1,2550.0,0.001]
[1751953148211,18.69454012,2550.1,2550.0,0.001]
[1751953149235,18.69458248,2550.1,2550.0,0.001]
[1751953151120,24.61358248,2550.1,2550.0,0.001]
[1751953153139,14.61358248,2550.1,2550.0,0.001]
[1751953154057,12.26659413,2550.1,2550.0,0.001]
[1751953155274,22.26659413,2550.1,2550.0,0.001]
[1751953155428,25.39308248,2550.1,2550.0,0.001]
[1751953155627,25.39308248,2550.1,2549.9,0.001]
[1751953155628,10.0,2550.0,2549.9,0.001]
[1751953155949,17.91644304,2550.0,2549.9,0.001]
[1751953156346,18.49657995,2550.0,2549.9,0.001]
[1751953156563,16.1495916,2550.0,2549.9,0.001]
[1751953158165,22.06236235,2550.0,2549.9,0.001]
[1751953158964,22.06229786,2550.0,2549.9,0.001]
[1751953161443,22.06223292,2550.0,2549.9,0.001]
[1751953162245,24.4178646,2550.0,2549.9,0.001]
[1751953164673,24.41777481,2550.0,2549.9,0.001]
[1751953168355,25.20557481,2550.0,2549.9,0.001]
[1751953168670,29.12714343,2550.0,2549.9,0.001]
[1751953169981,26.77151175,2550.0,2549.9,0.001]
[1751953170372,29.12630234,2550.0,2549.9,0.001]
[1751953170762,5.91277075,2549.8,2549.7,0.001]
[1751953170962,25.66723775,2549.8,2549.7,0.001]
[1751953171279,26.44703775,2549.8,2549.7,0.001]
[1751953171858,36.44703775,2549.8,2549.7,0.001]
[1751953172058,34.68094313,2549.8,2549.7,0.001]
[1751953172563,34.68081392,2549.8,2549.7,0.001]
[1751953172757,36.44653728,2549.8,2549.7,0.001]
[1751953174582,29.75396653,2549.8,2549.7,0.001]
[1751953179356,29.75358268,2549.8,2549.7,0.001]
[1751953182285,29.75358925,2549.8,2549.7,0.001]
[1751953183287,23.83358925,2549.8,2549.7,0.001]
[1751953196996,23.83386423,2549.8,2549.7,0.001]
[1751953197396,22.06814087,2549.8,2549.7,0.001]
[1751953199918,22.0682031,2549.8,2549.7,0.001]
[1751953204816,22.06857344,2549.8,2549.7,0.001]
[1751953205193,16.14957344,2549.8,2549.7,0.001]
[1751953205430,23.8354827,2549.8,2549.7,0.001]
[1751953206406,22.06857344,2549.8,2549.7,0.001]
[1751953207192,23.83550421,2549.8,2549.7,0.001]
[1751953207427,22.06857344,2549.8,2549.7,0.001]
[1751953208731,17.91654967,2549.8,2549.7,0.001]
[1751953209034,23.83554967,2549.8,2549.7,0.001]
[1751953209534,7.91654967,2549.8,2549.7,0.001]
[1751953209830,6.34557344,2549.8,2549.7,0.001]
[1751953210823,6.34544123,2549.8,2549.7,0.001]
[1751953211023,2.34544123,2549.8,2549.7,0.001]
[1751953213717,2.34528735,2549.8,2549.7,0.001]
[1751953219541,2.34471606,2549.8,2549.7,0.001]
[1751953223930,0.93133706,2549.8,2549.7,0.001]